fUST/lending_fUST_20251119
["ID","MTS","AMOUNT","RATE_DAILY","PERIOD"]
[394394384,1763526639703,-1000.0,0.00014798,2]
[394394385,1763526639712,-1000.0,0.00014798,2]
[394394386,1763526639722,-1000.0,0.00014798,2]
[394394387,1763526639732,-1000.0,0.00014798,2]
[394394388,1763526639741,-1000.0,0.00014798,2]
[394394389,1763526639751,-1000.0,0.00014798,2]
[394394390,1763526639760,-1000.0,0.00014798,2]
[394394391,1763526639769,-212.21361508,0.00014798,2]
[394394392,1763526639778,-1000.0,0.00014798,2]
[394394393,1763526639788,-1000.0,0.00014798,2]
[394394394,1763526639797,-1000.0,0.00014798,2]
[394394395,1763526639806,-151.0,0.000148,2]
[394394396,1763526639815,-151.0,0.000148,2]
[394394397,1763526639825,-151.0,0.000148,2]
[394394398,1763526639834,-7456.52236159,0.00014818,2]
[394394399,1763526639843,-500.0,0.00014822,2]
[394394400,1763526639852,-7732.41368897,0.00014873,2]
[394394401,1763526639861,-1680.0,0.00014894,2]
[394394402,1763526639871,-420.0,0.00014894,2]
[394394403,1763526639880,-151.0,0.000149,2]
[394394404,1763526639889,-151.0,0.000149,2]
[394394405,1763526639898,-180.84682452,0.000149,2]
[394394406,1763526639909,-591.43211028,0.000149,2]
[394394407,1763526639929,-8018.51299546,0.00014928,2]
[394394408,1763526639939,-1680.0,0.00014948,2]
[394394409,1763526639948,-8315.19797629,0.00014983,2]
[394394410,1763526639958,-1012.85744527,0.00015,2]
[394394411,1763526639967,-553.03157674,0.00015,2]
[394394412,1763526639976,-1000.0,0.00015033,2]
[394394413,1763526639986,-8622.86030142,0.00015038,2]
[394394414,1763526639994,-232.97,0.00015041,2]
[394394415,1763526640003,-800.0,0.00015068,2]
[394394416,1763526640012,-8941.90613257,0.00015093,2]
[394394417,1763526640021,-500.0,0.00015096,2]
[394394418,1763526640030,-1574.0,0.00015119,2]
[394394419,1763526640039,-9272.75665947,0.00015148,2]
[394394420,1763526640050,-1574.0,0.00015161,2]
[394394421,1763526640059,-12002.2833188,0.00015175,2]
[394394422,1763526640068,-1574.0,0.00015199,2]
[394394423,1763526640078,-9615.84865587,0.00015203,2]
[394394424,1763526640087,-1000.0,0.00015221,2]
[394394425,1763526640097,-506.29595838,0.00015221,2]
[394394426,1763526640106,-1000.0,0.00015221,2]
[394394427,1763526640115,-1000.0,0.00015221,2]
[394394428,1763526640124,-1016.89679084,0.00015221,2]
[394394429,1763526640133,-676.90449595,0.00015221,2]
[394394430,1763526640142,-1000.0,0.00015221,2]
[394394431,1763526640151,-1000.0,0.00015221,2]
[394394432,1763526640160,-1000.0,0.00015221,2]
[394394433,1763526640169,-1000.0,0.00015221,2]
[394394434,1763526640178,-1000.0,0.00015221,2]
[394394435,1763526640188,-1000.0,0.00015221,2]
[394394436,1763526640198,-233.51889341,0.00015228,2]
[394394437,1763526640207,-9971.63505614,0.00015258,2]
[394394438,1763526640217,-1574.0,0.00015307,2]
[394394439,1763526640226,-1500.0,0.00015346,2]
[394394440,1763526640235,-1500.0,0.00015346,2]
[394394442,1763526640244,-1500.0,0.00015346,2]
[394394444,1763526640253,-1500.0,0.00015346,2]
[394394446,1763526640262,-506.33799268,0.00015346,2]
[394394447,1763526640271,-1500.0,0.00015346,2]
[394394448,1763526640280,-1500.0,0.00015346,2]
[394394449,1763526640290,-1500.0,0.00015346,2]
[394394450,1763526640303,-1500.0,0.00015346,2]
[394394451,1763526640312,-1017.16437544,0.00015346,2]
[394394452,1763526640321,-500.0,0.0001537,2]
[394394453,1763526640330,-1574.0,0.00015371,2]
[394394454,1763526640340,-1574.0,0.00015447,2]
[394394455,1763526640350,-1574.0,0.00015456,2]
[394394456,1763526640359,-1574.0,0.00015506,2]
[394394457,1763526640368,-277.52767138,0.00015558,2]
[394394458,1763526640380,-1500.0,0.00015581,2]
[394394459,1763526640390,-1209.0742764,0.00015634,2]
[394394460,1763526640399,-500.0,0.00015644,2]
[394394461,1763526640408,-500.0,0.0001567,2]
[394394462,1763526640418,-151.0,0.0001567,2]
[394394463,1763526640427,-500.0,0.0001567,2]
[394394464,1763526640437,-500.0,0.0001567,2]
[394394465,1763526640446,-151.0,0.0001567,2]
[394394466,1763526640455,-487.0,0.0001567,2]
[394394467,1763526640464,-156.98824744,0.0001567,2]
[394394468,1763526640473,-1549.0,0.0001567,2]
[394394470,1763526640482,-565.0,0.0001567,2]
[394394472,1763526640492,-151.0,0.0001567,2]
[394394474,1763526640500,-201.18033103,0.0001567,2]
[394394475,1763526640510,-151.0,0.0001567,2]
[394394477,1763526640519,-151.0,0.0001567,2]
[394394478,1763526640528,-500.0,0.0001567,2]
[394394479,1763526640537,-500.0,0.0001567,2]
[394394480,1763526640546,-153.60225874,0.0001567,2]
[394394481,1763526640556,-157.8498372,0.0001567,2]
[394394482,1763526640565,-151.0,0.0001567,2]
[394394483,1763526640575,-1574.0,0.00015671,2]
[394394484,1763526640584,-500.0,0.00015697,2]
[394394485,1763526640593,-151.0,0.00015697,2]
[394394486,1763526640603,-500.0,0.00015697,2]
[394394487,1763526640612,-500.0,0.00015697,2]
[394394488,1763526640621,-159.24956226,0.00015697,2]
[394394489,1763526640631,-487.0,0.00015697,2]
[394394490,1763526640640,-1549.0,0.00015697,2]
[394394491,1763526640650,-565.0,0.00015697,2]
[394394492,1763526640659,-151.0,0.00015697,2]
[394394493,1763526640669,-500.0,0.00015697,2]
[394394494,1763526640679,-500.0,0.00015697,2]
[394394495,1763526640689,-205.52081515,0.00015697,2]
[394394496,1763526640698,-1574.0,0.00015704,2]
[394394497,1763526640708,-720.0,0.00015707,2]
[394394498,1763526640717,-165.04320545,0.00015725,2]
[394394499,1763526640726,-279.23716234,0.00015725,2]
[394394500,1763526640736,-500.0,0.00015725,2]
[394394501,1763526640744,-500.0,0.00015725,2]
[394394502,1763526640754,-487.0,0.00015725,2]
[394394503,1763526640763,-1549.0,0.00015725,2]
[394394504,1763526640772,-565.0,0.00015725,2]
[394394505,1763526640781,-151.0,0.00015725,2]
[394394506,1763526640790,-500.0,0.00015725,2]
[394394507,1763526640800,-500.0,0.00015725,2]
[394394508,1763526640809,-500.0,0.00015752,2]
[394394509,1763526640818,-500.0,0.00015752,2]
[394394510,1763526640827,-487.0,0.00015752,2]
[394394511,1763526640836,-1549.0,0.00015752,2]
[394394512,1763526640845,-565.0,0.00015752,2]
[394394514,1763526640854,-254.3822629,0.00015752,2]
[394394515,1763526640863,-500.0,0.00015752,2]
[394394516,1763526640872,-480.00032508,0.00015768,2]
[394394517,1763526640882,-1500.0,0.00015768,2]
[394394518,1763526640891,-1002.36654671,0.00015768,2]
[394394519,1763526640900,-1500.0,0.00015768,2]
[394394520,1763526640910,-1602.49645875,0.00015768,2]
[394394521,1763526640919,-423.78626152,0.00015768,2]
[394394522,1763526640928,-1500.0,0.00015768,2]
[394394523,1763526640939,-1500.0,0.00015768,2]
[394394524,1763526640948,-532.65714763,0.00015768,2]
[394394525,1763526640957,-242.15909246,0.00015776,2]
[394394526,1763526640966,-1574.0,0.00015779,2]
[394394527,1763526640976,-500.0,0.0001578,2]
[394394528,1763526640985,-500.0,0.0001578,2]
[394394529,1763526640994,-487.0,0.0001578,2]
[394394530,1763526641003,-1549.0,0.0001578,2]
[394394531,1763526641012,-565.0,0.0001578,2]
[394394532,1763526641022,-500.0,0.0001578,2]
[394394533,1763526641031,-500.0,0.00015807,2]
[394394534,1763526641040,-500.0,0.00015807,2]
[394394535,1763526641049,-487.0,0.00015807,2]
[394394536,1763526641058,-1549.0,0.00015807,2]
[394394537,1763526641067,-565.0,0.00015807,2]
[394394538,1763526641076,-160.0,0.00015824,2]
[394394539,1763526641086,-500.0,0.00015834,2]
[394394540,1763526641095,-500.0,0.00015834,2]
[394394541,1763526641104,-487.0,0.00015834,2]
[394394542,1763526641113,-1549.0,0.00015834,2]
[394394543,1763526641122,-565.0,0.00015834,2]
[394394544,1763526641131,-500.0,0.00015862,2]
[394394545,1763526641140,-173.03643772,0.00015862,2]
[394394546,1763526641149,-487.0,0.00015862,2]
[394394547,1763526641158,-1549.0,0.00015862,2]
[394394548,1763526641168,-565.0,0.00015862,2]
[394394549,1763526641177,-500.0,0.00015889,2]
[394394550,1763526641186,-487.0,0.00015889,2]
[394394551,1763526641195,-1549.0,0.00015889,2]
[394394552,1763526641204,-565.0,0.00015889,2]
[394394553,1763526641213,-254.08719922,0.00015889,2]
[394394554,1763526641222,-2000.0,0.00015894,2]
[394394555,1763526641231,-501.77337171,0.00015894,2]
[394394556,1763526641240,-2000.0,0.00015894,2]
[394394557,1763526641249,-2000.0,0.00015894,2]
[394394558,1763526641259,-2000.0,0.00015894,2]
[394394559,1763526641268,-2000.0,0.00015894,2]
[394394560,1763526641277,-668.75498445,0.00015894,2]
[394394561,1763526641286,-2000.0,0.00015894,2]
[394394562,1763526641307,-500.0,0.00015917,2]
[394394563,1763526641326,-487.0,0.00015917,2]
[394394564,1763526641336,-1549.0,0.00015917,2]
[394394565,1763526641346,-565.0,0.00015917,2]
[394394566,1763526641355,-500.0,0.00015918,2]
[394394567,1763526641365,-1574.0,0.00015944,2]
[394394568,1763526641375,-500.0,0.00015944,2]
[394394569,1763526641384,-487.0,0.00015944,2]
[394394570,1763526641394,-1549.0,0.00015944,2]
[394394571,1763526641403,-565.0,0.00015944,2]
[394394572,1763526641412,-500.0,0.00015971,2]
[394394573,1763526641421,-487.0,0.00015971,2]
[394394574,1763526641431,-1549.0,0.00015971,2]
[394394575,1763526641443,-565.0,0.00015971,2]
[394394576,1763526641452,-100000.0,0.0001599,2]
[394394577,1763526641462,-500.0,0.00015999,2]
[394394578,1763526641471,-487.0,0.00015999,2]
[394394579,1763526641481,-1549.0,0.00015999,2]
[394394580,1763526641490,-565.0,0.00015999,2]
[394394581,1763526641499,-214.56473727,0.00016,2]
[394394582,1763526641509,-500.0,0.00016026,2]
[394394583,1763526641518,-487.0,0.00016026,2]
[394394584,1763526641528,-1549.0,0.00016026,2]
[394394585,1763526641537,-565.0,0.00016026,2]
[394394586,1763526641546,-500.0,0.00016054,2]
[394394587,1763526641556,-487.0,0.00016054,2]
[394394588,1763526641566,-1549.0,0.00016054,2]
[394394589,1763526641575,-565.0,0.00016054,2]
[394394590,1763526641585,-500.0,0.00016081,2]
[394394591,1763526641595,-487.0,0.00016081,2]
[394394592,1763526641711,-1549.0,0.00016081,2]
[394394593,1763526641721,-565.0,0.00016081,2]
[394394594,1763526641731,-500.0,0.00016108,2]
[394394595,1763526641740,-487.0,0.00016108,2]
[394394596,1763526641750,-1549.0,0.00016108,2]
[394394597,1763526641759,-565.0,0.00016108,2]
[394394598,1763526641769,-1154.38698722,0.00016128,2]
[394394599,1763526641778,-166.16225842,0.00016136,2]
[394394600,1763526641788,-487.0,0.00016136,2]
[394394601,1763526641798,-1549.0,0.00016136,2]
[394394602,1763526641807,-565.0,0.00016136,2]
[394394603,1763526641816,-1574.0,0.00016148,2]
[394394604,1763526641825,-1574.0,0.00016163,2]
[394394605,1763526641835,-487.0,0.00016163,2]
[394394606,1763526641844,-1549.0,0.00016163,2]
[394394607,1763526641853,-565.0,0.00016163,2]
[394394608,1763526641862,-1600.0,0.00016164,2]
[394394609,1763526641871,-1574.0,0.00016166,2]
[394394610,1763526641880,-487.0,0.00016191,2]
[394394611,1763526641890,-1549.0,0.00016191,2]
[394394612,1763526641899,-565.0,0.00016191,2]
[394394613,1763526641908,-500.0,0.00016192,2]
[394394614,1763526641918,-487.0,0.00016218,2]
[394394615,1763526641927,-1549.0,0.00016218,2]
[394394616,1763526641937,-565.0,0.00016218,2]
[394394617,1763526641946,-1574.0,0.00016229,2]
[394394618,1763526641955,-487.0,0.00016245,2]
[394394619,1763526641965,-1549.0,0.00016245,2]
[394394620,1763526641975,-565.0,0.00016245,2]
[394394621,1763526641984,-487.0,0.00016273,2]
[394394622,1763526641993,-1549.0,0.00016273,2]
[394394623,1763526642002,-565.0,0.00016273,2]
[394394624,1763526642011,-1574.0,0.00016274,2]
[394394625,1763526642021,-498.38587116,0.000163,2]
[394394626,1763526642030,-1561.35980846,0.000163,2]
[394394627,1763526642039,-582.95400124,0.000163,2]
[394394628,1763526642048,-2000.0,0.00016316,2]
[394394629,1763526642058,-504.53701196,0.00016316,2]
[394394630,1763526642067,-2000.0,0.00016316,2]
[394394631,1763526642076,-527.31382683,0.00016316,2]
[394394632,1763526642086,-417.0,0.00016324,2]
[394394633,1763526642095,-587.0,0.00016324,2]
[394394634,1763526642105,-251.11897888,0.00016324,2]
[394394635,1763526642114,-260.0,0.00016372,2]
[394394636,1763526642124,-1574.0,0.00016389,2]
[394394637,1763526642133,-2251.83879319,0.00016405,2]
[394394638,1763526642142,-1574.0,0.00016413,2]
[394394639,1763526642152,-241.26405697,0.00016416,2]
[394394640,1763526642161,-1574.0,0.00016418,2]
[394394641,1763526642170,-397.48582206,0.0001643,2]
[394394642,1763526642179,-714.75900523,0.0001643,2]
[394394643,1763526642189,-151.000082,0.00016438,2]
[394394644,1763526642198,-152.662201,0.00016438,2]
[394394645,1763526642207,-152.662201,0.00016438,2]
[394394646,1763526642215,-152.662201,0.00016438,2]
[394394647,1763526642224,-152.662201,0.00016438,2]
[394394648,1763526642233,-458.125719,0.00016438,2]
[394394649,1763526642242,-458.125719,0.00016438,2]
[394394650,1763526642251,-458.125719,0.00016438,2]
[394394651,1763526642260,-458.125719,0.00016438,2]
[394394652,1763526642268,-500.0,0.00016438,2]
[394394653,1763526642278,-500.0,0.00016438,2]
[394394654,1763526642287,-471.83083258,0.00016438,2]
[394394655,1763526642301,-500.0,0.00016438,2]
[394394656,1763526642310,-500.0,0.00016438,2]
[394394657,1763526642319,-500.0,0.00016438,2]
[394394658,1763526642328,-500.0,0.00016438,2]
[394394659,1763526642338,-500.0,0.00016438,2]
[394394660,1763526642347,-500.0,0.00016438,2]
[394394661,1763526642356,-500.0,0.00016438,2]
[394394662,1763526642364,-500.0,0.00016438,2]
[394394663,1763526642374,-500.0,0.00016438,2]
[394394664,1763526642384,-330.2815828,0.00016438,2]
[394394665,1763526642394,-500.0,0.00016438,2]
[394394666,1763526642404,-500.0,0.00016438,2]
[394394667,1763526642413,-500.0,0.00016438,2]
[394394668,1763526642422,-500.0,0.00016438,2]
[394394669,1763526642431,-500.0,0.00016438,2]
[394394670,1763526642441,-500.0,0.00016438,2]
[394394671,1763526642450,-500.0,0.00016438,2]
[394394672,1763526642459,-500.0,0.00016438,2]
[394394673,1763526642468,-500.0,0.00016438,2]
[394394674,1763526642477,-500.0,0.00016438,2]
[394394675,1763526642486,-500.0,0.00016438,2]
[394394676,1763526642494,-500.0,0.00016438,2]
[394394677,1763526642503,-500.0,0.00016438,2]
[394394678,1763526642512,-500.0,0.00016438,2]
[394394679,1763526642522,-500.0,0.00016438,2]
[394394680,1763526642531,-500.0,0.00016438,2]
[394394681,1763526642540,-500.0,0.00016438,2]
[394394682,1763526642550,-500.0,0.00016438,2]
[394394683,1763526642559,-500.0,0.00016438,2]
[394394684,1763526642568,-500.0,0.00016438,2]
[394394685,1763526642578,-500.0,0.00016438,2]
[394394686,1763526642589,-500.0,0.00016438,2]
[394394687,1763526642598,-500.0,0.00016438,2]
[394394688,1763526642607,-500.0,0.00016438,2]
[394394689,1763526642616,-500.0,0.00016438,2]
[394394690,1763526642626,-500.0,0.00016438,2]
[394394691,1763526642636,-500.0,0.00016438,2]
[394394692,1763526642646,-500.0,0.00016438,2]
[394394693,1763526642656,-500.0,0.00016438,2]
[394394694,1763526642665,-500.0,0.00016438,2]
[394394695,1763526642675,-500.0,0.00016438,2]
[394394696,1763526642687,-500.0,0.00016438,2]
[394394697,1763526642697,-500.0,0.00016438,2]
[394394698,1763526642706,-500.0,0.00016438,2]
[394394699,1763526642716,-500.0,0.00016438,2]
[394394700,1763526642725,-500.0,0.00016438,2]
[394394701,1763526642735,-500.0,0.00016438,2]
[394394702,1763526642746,-500.0,0.00016438,2]
[394394703,1763526642755,-500.0,0.00016438,2]
[394394704,1763526642765,-500.0,0.00016438,2]
[394394705,1763526642775,-500.0,0.00016438,2]
[394394706,1763526642785,-500.0,0.00016438,2]
[394394707,1763526642794,-500.0,0.00016438,2]
[394394708,1763526642804,-500.0,0.00016438,2]
[394394709,1763526642813,-500.0,0.00016438,2]
[394394710,1763526642822,-500.0,0.00016438,2]
[394394711,1763526642831,-500.0,0.00016438,2]
[394394712,1763526642841,-500.0,0.00016438,2]
[394394713,1763526642850,-500.0,0.00016438,2]
[394394714,1763526642859,-212.49715175,0.00016438,2]
[394394715,1763526642868,-500.0,0.00016438,2]
[394394716,1763526642878,-500.0,0.00016438,2]
[394394717,1763526642887,-500.0,0.00016438,2]
[394394718,1763526642896,-500.0,0.00016438,2]
[394394719,1763526642905,-500.0,0.00016438,2]
[394394720,1763526642914,-500.0,0.00016438,2]
[394394721,1763526642923,-500.0,0.00016438,2]
[394394722,1763526642932,-500.0,0.00016438,2]
[394394723,1763526642943,-500.0,0.00016438,2]
[394394724,1763526642952,-500.0,0.00016438,2]
[394394725,1763526642961,-500.0,0.00016438,2]
[394394726,1763526642971,-500.0,0.00016438,2]
[394394727,1763526642980,-500.0,0.00016438,2]
[394394728,1763526642990,-500.0,0.00016438,2]
[394394729,1763526642999,-500.0,0.00016438,2]
[394394730,1763526643007,-500.0,0.00016438,2]
[394394731,1763526643017,-500.0,0.00016438,2]
[394394732,1763526643027,-500.0,0.00016438,2]
[394394733,1763526643036,-500.0,0.00016438,2]
[394394734,1763526643046,-500.0,0.00016438,2]
[394394735,1763526643055,-500.0,0.00016438,2]
[394394736,1763526643065,-500.0,0.00016438,2]
[394394737,1763526643074,-500.0,0.00016438,2]
[394394738,1763526643084,-500.0,0.00016438,2]
[394394739,1763526643094,-500.0,0.00016438,2]
[394394740,1763526643103,-173.01386242,0.00016438,2]
[394394741,1763526643112,-500.0,0.00016438,2]
[394394742,1763526643122,-500.0,0.00016438,2]
[394394744,1763526643132,-500.0,0.00016438,2]
[394394746,1763526643141,-500.0,0.00016438,2]
[394394747,1763526643151,-500.0,0.00016438,2]
[394394748,1763526643160,-500.0,0.00016438,2]
[394394750,1763526643170,-500.0,0.00016438,2]
[394394752,1763526643179,-151.0,0.00016438,2]
[394394754,1763526643189,-151.0,0.00016438,2]
[394394756,1763526643198,-151.0,0.00016438,2]
[394394757,1763526643208,-151.0,0.00016438,2]
[394394758,1763526643217,-151.0,0.00016438,2]
[394394759,1763526643226,-151.0,0.00016438,2]
[394394760,1763526643236,-151.0,0.00016438,2]
[394394761,1763526643245,-151.0,0.00016438,2]
[394394762,1763526643255,-151.0,0.00016438,2]
[394394763,1763526643264,-2500.0,0.00016442,2]
[394394764,1763526643274,-1007.82932849,0.00016442,2]
[394394765,1763526643283,-2500.0,0.00016442,2]
[394394766,1763526643294,-373.42907464,0.00016442,2]
[394394767,1763526643306,-1164.34320988,0.00016442,2]
[394394768,1763526643316,-2500.0,0.00016442,2]
[394394769,1763526643325,-2279.0,0.00016443,2]
[394394770,1763526643335,-1574.0,0.00016454,2]
[394394771,1763526643344,-500.0,0.00016466,2]
[394394772,1763526643354,-500.70682001,0.00016473,2]
[394394773,1763526643364,-158.99891625,0.00016473,2]
[394394774,1763526643375,-500.0,0.00016473,2]
[394394775,1763526643384,-159.40504128,0.00016473,2]
[394394776,1763526643393,-500.0,0.00016473,2]
[394394777,1763526643403,-500.39101686,0.00016473,2]
[394394778,1763526643411,-500.0,0.00016473,2]
[394394779,1763526643421,-500.0,0.00016473,2]
[394394780,1763526643430,-500.0,0.00016473,2]
[394394781,1763526643440,-501.55108345,0.00016473,2]
[394394782,1763526643450,-500.37423692,0.00016473,2]
[394394783,1763526643459,-504.05832909,0.00016473,2]
[394394784,1763526643469,-500.0,0.00016473,2]
[394394785,1763526643478,-158.92081534,0.00016473,2]
[394394786,1763526643488,-500.54156975,0.00016473,2]
[394394787,1763526643498,-302.48982902,0.00016473,2]
[394394788,1763526643507,-500.62162773,0.00016473,2]
[394394789,1763526643517,-500.0,0.00016473,2]
[394394790,1763526643527,-500.0,0.00016473,2]
[394394791,1763526643536,-500.0,0.00016473,2]
[394394792,1763526643545,-179.97069143,0.00016473,2]
[394394793,1763526643554,-500.0,0.00016473,2]
[394394794,1763526643564,-500.0,0.00016473,2]
[394394795,1763526643573,-500.0,0.00016473,2]
[394394796,1763526643582,-500.0,0.00016473,2]
[394394797,1763526643591,-500.0,0.00016473,2]
[394394798,1763526643600,-174.97796697,0.00016473,2]
[394394799,1763526643609,-500.0,0.00016473,2]
[394394800,1763526643618,-500.0,0.00016473,2]
[394394801,1763526643627,-500.0,0.00016473,2]
[394394802,1763526643637,-500.0,0.00016473,2]
[394394803,1763526643646,-500.0,0.00016473,2]
[394394804,1763526643655,-183.10083734,0.00016473,2]
[394394805,1763526643664,-505.60972619,0.00016473,2]
[394394806,1763526643674,-500.0,0.00016473,2]
[394394807,1763526643683,-513.57092707,0.00016473,2]
[394394808,1763526643695,-500.0,0.00016473,2]
[394394810,1763526643704,-470.80631433,0.00016473,2]
[394394812,1763526643713,-501.40538733,0.00016473,2]
[394394813,1763526643722,-159.64954857,0.00016473,2]
[394394814,1763526643731,-505.86166721,0.00016473,2]
[394394815,1763526643740,-344.72879565,0.00016473,2]
[394394816,1763526643750,-500.0,0.00016473,2]
[394394817,1763526643759,-500.0,0.00016473,2]
[394394818,1763526643767,-501.02696155,0.00016473,2]
[394394819,1763526643777,-500.0,0.00016473,2]
[394394820,1763526643786,-500.0,0.00016473,2]
[394394821,1763526643795,-500.0,0.00016473,2]
[394394822,1763526643805,-500.0,0.00016473,2]
[394394823,1763526643814,-500.0,0.00016473,2]
[394394824,1763526643823,-430.05531192,0.00016473,2]
[394394825,1763526643832,-500.0,0.00016473,2]
[394394826,1763526643841,-501.23064018,0.00016473,2]
[394394827,1763526643850,-500.0,0.00016473,2]
[394394828,1763526643858,-500.0,0.00016473,2]
[394394829,1763526643868,-500.0,0.00016473,2]
[394394830,1763526643877,-500.0,0.00016473,2]
[394394831,1763526643886,-500.0,0.00016473,2]
[394394832,1763526643895,-500.0,0.00016473,2]
[394394833,1763526643904,-453.81206981,0.00016473,2]
[394394834,1763526643913,-445.69250355,0.00016473,2]
[394394835,1763526643922,-500.0,0.00016473,2]
[394394836,1763526643931,-500.0,0.00016473,2]
[394394837,1763526643942,-500.0,0.00016473,2]
[394394838,1763526643951,-500.0,0.00016473,2]
[394394839,1763526643960,-500.28151942,0.00016473,2]
[394394840,1763526643969,-162.85610517,0.00016473,2]
[394394841,1763526643979,-165.48732767,0.00016473,2]
[394394842,1763526643987,-509.84315193,0.00016473,2]
[394394843,1763526643997,-501.61884464,0.00016473,2]
[394394845,1763526644101,-500.0,0.00016473,2]
[394394846,1763526644111,-500.0,0.00016473,2]
[394394847,1763526644120,-172.55388676,0.00016473,2]
[394394848,1763526644129,-500.0,0.00016473,2]
[394394849,1763526644138,-511.22832421,0.00016473,2]
[394394850,1763526644147,-500.0,0.00016473,2]
[394394851,1763526644156,-501.65067781,0.00016473,2]
[394394852,1763526644165,-500.0,0.00016473,2]
[394394853,1763526644174,-500.0,0.00016473,2]
[394394854,1763526644183,-503.33042753,0.00016473,2]
[394394855,1763526644193,-500.70555796,0.00016473,2]
[394394856,1763526644203,-458.125719,0.00016473,2]
[394394857,1763526644212,-458.125719,0.00016473,2]
[394394858,1763526644221,-458.125719,0.00016473,2]
[394394859,1763526644230,-458.125719,0.00016473,2]
[394394860,1763526644239,-1574.0,0.00016479,2]
[394394861,1763526644248,-1574.0,0.00016489,2]
[394394862,1763526644257,-1574.0,0.00016509,2]
[394394863,1763526644267,-500.0,0.0001653,2]
[394394864,1763526644276,-500.98617428,0.0001653,2]
[394394865,1763526644285,-152.662201,0.00016555,2]
[394394866,1763526644296,-152.662201,0.00016555,2]
[394394867,1763526644306,-152.662201,0.00016555,2]
[394394868,1763526644316,-152.662201,0.00016555,2]
[394394869,1763526644325,-151.0,0.00016555,2]
[394394870,1763526644334,-151.0,0.00016555,2]
[394394871,1763526644345,-151.0,0.00016555,2]
[394394872,1763526644354,-1574.0,0.00016587,2]
[394394873,1763526644364,-12981.77029786,0.00016716,2]
[394394874,1763526644375,-500.0,0.0001674,2]
[394394875,1763526644384,-295.589,0.00016776,2]
[394394876,1763526644393,-150.0,0.00016776,2]
[394394877,1763526644402,-150.278,0.00016776,2]
[394394878,1763526644411,-234.035,0.00016776,2]
[394394879,1763526644420,-250.0,0.00016776,2]
[394394880,1763526644429,-257.749,0.00016776,2]
[394394881,1763526644438,-150.0,0.00016776,2]
[394394882,1763526644446,-265.691,0.00016776,2]
[394394883,1763526644455,-460.865,0.00016799,2]
[394394884,1763526644464,-414.0,0.00016799,2]
[394394885,1763526644473,-12981.77029786,0.00016823,2]
[394394886,1763526644483,-2500.0,0.00016864,2]
[394394887,1763526644494,-1048.14046084,0.00016864,2]
[394394888,1763526644506,-260.4103811,0.00016872,2]
[394394889,1763526644515,-12002.2833188,0.00016911,2]
[394394890,1763526644524,-360.0,0.0001692,2]
[394394891,1763526644534,-12981.77029786,0.0001693,2]
[394394892,1763526644543,-1085.30152,0.00016955,2]
[394394893,1763526644553,-3000.0,0.0001699,2]
[394394894,1763526644562,-3000.0,0.0001699,2]
[394394895,1763526644572,-3000.0,0.0001699,2]
[394394896,1763526644581,-45839.12519212,0.00017,2]
[394394897,1763526644590,-151.0,0.00017,2]
[394394898,1763526644599,-152.832044,0.00017,2]
[394394899,1763526644608,-151.0,0.00017,2]
[394394900,1763526644617,-151.0,0.00017,2]